Cogmind - Beta 13 @@@ ROGUE MODE // 2024.04.03 @ 19:21:35 Player: writers.room Result: Destroyed by Y-45 Defender with Heavy Assault Rifle Performance ------------- Evolutions (2) 1000 Regions Visited (4) 800 Robots Destroyed (7) 35 Value Destroyed (347) 347 Prototype IDs (1) 20 Alien Tech Used (0) 0 Bonus (470) 470 TOTAL SCORE: 2672 Bonus ------- Pacifist 470 Cogmind --------- Core Integrity 0/550 Matter 300/300 Energy 100/100 System Corruption 0% Temperature Cool (9) Movement Core (50) Location -8/Materials Parts ------- > --- POWER (2) -------- (None) > --- PROPULSION (3) --- (None) > --- UTILITY (4) ------ (None) > --- WEAPON (2) ------- (None) > --- INVENTORY (5) ---- Deuterium Engine Faulty Advanced Beam Rifle Datajack Peak State ------------ > --- POWER ------------ Deuterium Engine Light Nuclear Core > --- PROPULSION ------- Aluminum Leg Aluminum Leg Carbon-fiber Leg > --- UTILITY ---------- Improved Heat Sink Structural Scanner Terrain Scanner > --- WEAPON ----------- Particle Gun Advanced Beam Rifle > --- INVENTORY -------- Deuterium Engine Datajack [Rating: 22] Favorites ----------- Power Deuterium Engine Engine Deuterium Engine Power Core Light Nuclear Core Propulsion Advanced Treads Treads Advanced Treads Leg Aluminum Leg Hover Unit Backup Propulsion I Utility Backup Plating I Device Structural Scanner Storage Huge Storage Unit Protection Backup Plating I Weapon Backup Laser I Energy Gun Backup Laser I Build | -11 -10 -9 -9 -8 ------- Run | Yrd Mat Mat Min Mat Slots Evolved 4 | . . 2 . 2 Power 1 | . . . . 1 Propulsion 1 | . . 1 . . Utility 2 | . . 1 . 1 Weapon . | . . . . . Parts Attached 19 | . . . . 19 Power 3 | . . . . 3 Engine 2 | . . . . 2 Core 1 | . . . . 1 Reactor . | . . . . . Propulsion 10 | . . . . 10 Treads 3 | . . . . 3 Leg 7 | . . . . 7 Wheel . | . . . . . Hover . | . . . . . Flight . | . . . . . Utility 4 | . . . . 4 Device 3 | . . . . 3 Storage 1 | . . . . 1 Processor . | . . . . . Hackware . | . . . . . Protection . | . . . . . Artifact . | . . . . . Weapon 2 | . . . . 2 Energy Gun 2 | . . . . 2 Energy Cannon . | . . . . . Ballistic Gun . | . . . . . Ballistic Cannon . | . . . . . Launcher . | . . . . . Special Weapon . | . . . . . Impact Weapon . | . . . . . Slashing Weapon . | . . . . . Piercing Weapon . | . . . . . Special Melee Weapon . | . . . . . Unidentified Prototypes 1 | . . . . 1 Parts Lost 14 | . . . . 14 Power 5 | . . . . 5 Propulsion 2 | . . . . 2 Utility 4 | . . . . 4 Weapon 3 | . . . . 3 Highest Loss Streak 7 | . . . . 7 To Critical Strikes . | . . . . . Average Slot Usage (%) 41 | . . . . 58 Engine 8 | . . . . 11 Core 1 | . . . . 2 Treads 5 | . . . . 7 Leg 7 | . . . . 9 Hover 1 | . . . . 2 Device 5 | . . . . 7 Protection 5 | . . . . 7 Energy Gun 7 | . . . . 9 Naked Turns 142 | . 33 58 46 5 Heaviest Build 22 | . . . . 22 Greatest Support 66 | 3 3 3 3 66 Greatest Overweight (x) 7 | . . . . 7 Average Overweight (x) . | . . . . . Largest Inventory Capacity 25 | 5 5 5 5 25 Average Capacity 5 | 5 5 5 5 5 Most Carried 4 | . . . 2 4 Average Carried 1 | . . . . 1 Final Capacity 5 | 5 5 5 5 5 Final Carried 3 | . . . 2 3 Class Distribution -------------------- 66% | Mutant 33% | Scavenger-Mutant Dominant Class ---------------- Mutant | -10/Materials Mutant | -9/Materials Mutant | -9/Mines Mutant | -8/Materials Resources | -11 -10 -9 -9 -8 ----------- Run | Yrd Mat Mat Min Mat Matter Collected 231 | . . . 61 170 Remotely . | . . . . . Salvage Created 289 | . . . . 289 Parts 12 | . . . . 12 Haulers Intercepted . | . . . . . Recyclers Shooed . | . . . . . Parts Field Recycled . | . . . . . Retrieved Matter . | . . . . . Parts Self-Destructed . | . . . . . Prevented . | . . . . . Kills | -11 -10 -9 -9 -8 ------- Run | Yrd Mat Mat Min Mat Combat Hostiles Destroyed 7 | . . . . 7 Melee 1 | . . . . 1 Guns 4 | . . . . 4 AOE 2 | . . . . 2 Classes Destroyed 2 | . . . . 2 Grunt 6 | . . . . 6 Sentry 1 | . . . . 1 Best Kill Streak 2 | . . . . 2 Combat Bots Only 2 | . . . . 2 Max Kills in Single Turn 2 | . . . . 2 Gunslinging . | . . . . . Exploded 2 | . . . . 2 Melee 1 | . . . . 1 Uniques/NPCs Destroyed . | . . . . . Combat | -11 -10 -9 -9 -8 -------- Run | Yrd Mat Mat Min Mat Hostile Shots Fired 152 | . 21 . . 131 Missed 46 | . 10 . . 36 Damage Taken 1856 | . 97 . . 1759 Core 659 | . 97 . . 562 Absorbed by Shields . | . . . . . Core Remaining (%) 87 | 100 61 . 100 . Volleys Fired 30 | . . . . 30 Largest 2 | . . . . 2 Hottest 65 | . . . . 65 Shots Fired 53 | . . . . 53 Gun 53 | . . . . 53 Cannon . | . . . . . Launcher . | . . . . . Special . | . . . . . Kinetic . | . . . . . Thermal 53 | . . . . 53 Explosive . | . . . . . Electromagnetic . | . . . . . Robot Hit Streak 10 | . . . . 10 Robot Miss Streak 4 | . . . . 4 Penetration Max . | . . . . . Secondary Targets 1 | . . . . 1 Max Gunslinging Chain 1 | . . . . 1 Shots Hit Robots 31 | . . . . 31 Core Hits 23 | . . . . 23 Critical Kills . | . . . . . Critical Parts Destroyed . | . . . . . Critical Strikes . | . . . . . Melee Attacks . | . . . . . Impact . | . . . . . Slashing . | . . . . . Piercing . | . . . . . Sneak Attacks . | . . . . . Combat Hostiles . | . . . . . Follow-up Attacks . | . . . . . Damage Inflicted 725 | . . . . 725 Guns 291 | . . . . 291 Cannons . | . . . . . Explosions 374 | . . . . 374 Melee . | . . . . . Ramming 60 | . . . . 60 Kinetic . | . . . . . Thermal 291 | . . . . 291 Explosive 374 | . . . . 374 Electromagnetic . | . . . . . Impact . | . . . . . Slashing . | . . . . . Piercing . | . . . . . Highest Corruption . | . . . . . Average Corruption . | . . . . . Corruption Purged . | . . . . . Corruption Blocked . | . . . . . Overload Shots . | . . . . . Overflow Damage 44 | . . . . 44 Projectiles . | . . . . . Explosions 44 | . . . . 44 Melee . | . . . . . Knockbacks 2 | . . . . 2 Impact 2 | . . . . 2 Kinetic . | . . . . . Secondary . | . . . . . Self-Inflicted Damage 119 | . . . . 119 Shots 1 | . . . . 1 Rammed 26 | . . . . 26 Targets Rammed 39 | . . . . 39 Kicked 12 | . . . . 12 Crushed 1 | . . . . 1 Highest Temperature 325 | . . . . 325 Average Temperature 139 | . . . . 139 Received Heat Transfer 759 | . 12 . . 747 Effects 1 | . . . . 1 Interference 1 | . . . . 1 Siege Activations . | . . . . . Robots Corrupted . | . . . . . Combat Hostiles . | . . . . . Parts Fried . | . . . . . Impact Corruptions . | . . . . . Robots Melted . | . . . . . Combat Hostiles . | . . . . . Parts Melted 6 | . . . . 6 Heat Transferred 1184 | . . . . 1184 Parts Sabotaged . | . . . . . Parts Stolen . | . . . . . Parts Stripped . | . . . . . Power Chain Reactions . | . . . . . Alert | -11 -10 -9 -9 -8 ------- Run | Yrd Mat Mat Min Mat Peak Influence 210 | . 45 53 20 210 Initial 20 | . . 18 20 7 Average 62 | . 15 38 20 78 Maximum Alert Level 1 | . . . . 1 Low Security (%) 98 | 100 100 100 100 97 Level 1 1 | . . . . 2 Level 2 . | . . . . . Level 3 . | . . . . . Level 4 . | . . . . . Level 5 . | . . . . . High Security . | . . . . . Max Security . | . . . . . Squads Dispatched 4 | . 1 . . 3 Investigation 1 | . . . . 1 Extermination . | . . . . . Reinforcement 3 | . 1 . . 2 Assault . | . . . . . Garrison . | . . . . . Intercept . | . . . . . Searches Triggered . | . . . . . Construction Impeded . | . . . . . Haulers Reinforced . | . . . . . Active Scanning Responses . | . . . . . Cargo Convoy Interrupts . | . . . . . Stealth | -11 -10 -9 -9 -8 --------- Run | Yrd Mat Mat Min Mat Distress Signals 1 | . . . . 1 Communications Jammed . | . . . . . Distress Signals . | . . . . . Times Spotted 20 | . 5 1 . 14 Peak Tracking Total 6 | . 4 1 . 6 Tactical Retreats 1 | . 1 . . . Traps | -11 -10 -9 -9 -8 ------- Run | Yrd Mat Mat Min Mat Traps Triggered . | . . . . . Indirectly . | . . . . . Trap Hack Attempts . | . . . . . Triggered . | . . . . . Disarmed . | . . . . . Reprogrammed . | . . . . . Reused . | . . . . . Traps Extracted . | . . . . . Installed . | . . . . . Triggered . | . . . . . Machines | -11 -10 -9 -9 -8 ---------- Run | Yrd Mat Mat Min Mat Machines Disabled 2 | . . . . 2 Max in Single Turn 2 | . . . . 2 Machines Repaired . | . . . . . Machines Dismantled . | . . . . . Machines Sabotaged . | . . . . . Overloaded Fab Kills . | . . . . . Hacking | -11 -10 -9 -9 -8 --------- Run | Yrd Mat Mat Min Mat Machines Accessed 4 | . . 2 . 2 Terminals 3 | . . 2 . 1 Fabricators . | . . . . . Repair Stations 1 | . . . . 1 Recycling Units . | . . . . . Scanalyzers . | . . . . . Garrison Access . | . . . . . Total Hacks 6 | . . 2 . 4 Successful 4 | . . 2 . 2 Failed 2 | . . . . 2 Catastrophic . | . . . . . Database Lockouts . | . . . . . Manual . | . . . . . Terminals 3 | . . 2 . 1 Fabricators . | . . . . . Repair Stations 3 | . . . . 3 Recycling Units . | . . . . . Scanalyzers . | . . . . . Garrison Access . | . . . . . Terminal Hacks 3 | . . 2 . 1 Zone Layout 3 | . . 2 . 1 Fabricator Hacks . | . . . . . Repair Station Hacks 1 | . . . . 1 Refit 1 | . . . . 1 Recycling Unit Hacks . | . . . . . Scanalyzer . | . . . . . Garrison Access Hacks . | . . . . . Unauthorized Hacks . | . . . . . Terminals . | . . . . . Fabricators . | . . . . . Repair Stations . | . . . . . Recycling Units . | . . . . . Scanalyzers . | . . . . . Garrison Access . | . . . . . Data Cores Recovered . | . . . . . Used . | . . . . . Hacking Detections 3 | . . 2 . 1 Full Trace Events 1 | . . . . 1 Feedback Events . | . . . . . Feedback Blocked . | . . . . . Robot Schematics Acquired . | . . . . . Robots Built . | . . . . . Authchips . | . . . . . Time . | . . . . . Total Robot Build Rating . | . . . . . Part Schematics Acquired . | . . . . . Parts Built . | . . . . . Authchips . | . . . . . Time . | . . . . . Total Part Build Rating . | . . . . . Parts Repaired . | . . . . . Time . | . . . . . Parts Recycled . | . . . . . Recycled Matter . | . . . . . Retrieved Matter . | . . . . . Retrieved Components . | . . . . . Parts Scanalyzed . | . . . . . Part Schematics Acquired . | . . . . . Parts Damaged . | . . . . . Bothacking | -11 -10 -9 -9 -8 ------------ Run | Yrd Mat Mat Min Mat Used RIF Installer . | . . . . . Robots Hacked . | . . . . . Non-combat . | . . . . . Combat . | . . . . . Robot Hacks Applied . | . . . . . Relay Couplers Released . | . . . . . Fabnet Peak Effective % . | . . . . . Robots Rewired . | . . . . . Allies Hacked . | . . . . . Hacks Repelled . | . . . . . Allies | -11 -10 -9 -9 -8 -------- Run | Yrd Mat Mat Min Mat Total Allies . | . . . . . Largest Group . | . . . . . Highest-Rated Group . | . . . . . Highest-Rated Ally . | . . . . . Total Orders . | . . . . . Ally Attacks . | . . . . . Total Damage . | . . . . . Kills . | . . . . . Allies Corrupted . | . . . . . Allies Melted . | . . . . . Intel | -11 -10 -9 -9 -8 ------- Run | Yrd Mat Mat Min Mat Robot Analysis Total . | . . . . . Derelict Logs Recovered 1 | . . . 1 . Drone Launches . | . . . . . Drone Recoveries . | . . . . . Exploration | -11 -10 -9 -9 -8 ------------- Run | Yrd Mat Mat Min Mat Turns Passed 470 | 9 33 58 46 324 Spaces Moved 418 | 18 66 116 88 130 Core 310 | 18 66 116 88 22 Treads 9 | . . . . 9 Legs 60 | . . . . 60 Wheels . | . . . . . Hover 39 | . . . . 39 Flight . | . . . . . Fastest Speed 50 | 50 50 50 50 50 Average Speed 70 | 50 50 50 50 114 Slowest Speed 400 | 50 50 50 50 400 Overloaded Moves . | . . . . . Propulsion Burnouts . | . . . . . Robots Hopped . | . . . . . Cave-ins Triggered . | . . . . . Exploration Rate (%) 16 | 2 26 14 29 11 Regions Visited 4 Branch Regions 1 Pre-discovered Areas . | . . . . . Known Exits Taken . | . . . . . Unknown Exits Taken 4 | 1 1 1 1 . Scrap Searched . | . . . . . Spaces Dug . | . . . . . Terrain Destroyed 39 | . . . . 39 Melee . | . . . . . Projectile . | . . . . . AOE 39 | . . . . 39 Terrain Rammed . | . . . . . Walls Destroyed . | . . . . . Machines Disabled . | . . . . . Actions | -11 -10 -9 -9 -8 --------- Run | Yrd Mat Mat Min Mat Total 523 | 17 65 115 89 237 Wait . | . . . . . Move 414 | 17 65 115 87 130 Hop . | . . . . . Pick Up 4 | . . . 2 2 Fast Attach 15 | . . . . 15 Attach 4 | . . . . 4 Detach 10 | . . . . 10 Swap . | . . . . . Drop 7 | . . . . 7 Fire 30 | . . . . 30 Melee . | . . . . . Ram 9 | . . . . 9 Kick 12 | . . . . 12 Crush 18 | . . . . 18 Escape Stasis . | . . . . . Rewire . | . . . . . Trap . | . . . . . Miscellaneous . | . . . . . Route ------- -11/Scrapyard -10/Materials -9/Materials -9/Mines -8/Materials History --------- Turn | Location | Event 5 | -11/Scrapyard | Discovered new exit (range 12) 10 | -11/Scrapyard | Entered Materials 36 | -10/Materials | Discovered new exit (range 16) 43 | -10/Materials | Entered another Materials area 43 | -9/Materials | Evolved 2 slots: Propulsion x1, Utility x1 78 | -9/Materials | Discovered new exit (range 13) 101 | -9/Materials | Entered Mines 126 | -9/Mines | Learned Materials security intel 126 | -9/Mines | Discovered new exit (range 13) 147 | -9/Mines | Entered Materials 147 | -8/Materials | Evolved 2 slots: Power x1, Utility x1 335 | -8/Materials | Lost 5 parts (1p2u2w) 453 | -8/Materials | Core integrity fell below 50% 467 | -8/Materials | Core integrity fell below 20% 471 | -8/Materials | Destroyed by Y-45 Defender with Heavy Assault Rifle Last Messages --------------- 00452_ Destabilizing: Core damaged (-22). 00456_ The unstable cave ceiling collapses. 00456_ Imp. Heat Sink destroyed. 00458_ Acquired Carbon-fiber Leg. 00459_ Kicked L-31 Rogue. 00461_ U-05 Engineer lays Concrete. 00461_ Kicked L-31 Rogue out of the way. 00462_ Critical hit (Burn: +37). 00463_ U-05 Engineer lays Concrete. 00464_ Carbon-fiber Leg destroyed. 00464_ Slammed into L-31 Rogue. 00464_ U-05 Engineer builds a Wall. 00466_ The unstable cave ceiling collapses. 00466_ Slammed into L-31 Rogue. 00466_ Structural Scanner severed. 00468_ Slammed into L-31 Rogue. 00468_ U-05 Engineer builds a Wall. 00469_ Acquired 27 matter. 00469_ Deuterium Engine destroyed. 00469_ Slammed into L-31 Rogue. Map ----- +----------------------------------------------------+ | ???????????????????????????????????????? | | ???????????????????????????????????????? | | ???????????????????????????????????????? | | ???????????????????????????????????????? | | ???????????????????????????????????????? | | ???????????????????????????????????????? | | ???????????????????????????????????????? | | ???????????????????????????????????????? | | ???????????????????????????????????????? | | ???????????????????????????????????????? | | ???????????????????????????????????????? | | ???????????????????????????????????????? | | ? ###### ???????? | | ? T ???????? | | ?####### # ????? | | ? ## ###"T"###########+#+# ????? | | ? #### ########## ### # ????? | | ? #### # ##""" # ????? | | ? + # !!! ##""" # ????? | | ?"" #### # !!! ##""" ##????? | | ?"" #?## # !! ## ##????? | | ?"" #?## / "" ##""" ##????? | | ? #?## # S"" ##""" ##????? | | ?######?## # "" # " ###???? | | ??????#?## #####+### # l #??#??? | | ????????## ### # # #@ ####???????? | | ??????#?## ### # % # ##?????????? | | ????????## T [% ###??#?????? | | ????????###### !Y## ##????????? | | ??#?????###### [ ###????#???? | | ????????????#### ## # ###????????? | | ????????????#### ## ##?????????? | | ????????#?????## #### ####????#????? | | ??????????????## #############?????????? | | ?????????####### ###########???????????? | | ????????########+#####????????????#????? | | ?????????## %##??#??????????????? | | ??? ?????##[ =* %%##?????????????????? | | ?????????##%[= =% ##?????????????????? | | ?????????## ==!= ##???#?????????????? | | ?????????## = ##?????????????????? | | ?????????## ##????#????????????? | | ?????????## ##?????#???????????? | | ??###????## ##?????????????????? | | ??# ########/#############?????????? | | ??# !% #?????????? | | ??# ! #?????????? | | ??# #?????????? | | ??# ###+######+#####" "###?????????? | | ??###?????????# #"R"#???????????? | +----------------------------------------------------+ Best States ------------- Heat Dissipation 45 Energy Generation 23 Energy Capacity 450 Matter Stores 300 Matter Capacity 300 Sight Range 16 Terrain Scan Range 14 Terrain Scan Density 10 Armor Coverage 160 Evasion (%) 55 Recoil Reduction 3 Item Schematics ----------------- None Robot Schematics ------------------ None Fabricated ------------ Nothing Alien Tech Used ----------------- None Achievements -------------- None Challenges ------------ None Game ------ Seed BarrageAntimissileTearclaws Manual? 0 Play Time 00:07:44 Cumulative 30.6 hours Start 2024.04.03 @ 19:13:41 End 2024.04.03 @ 19:21:35 Sessions 1 Manual Loads 0 Difficulty Rogue Special Mode None Game No. 76 Rogue 36 Adventurer 14 Explorer 26 Win Type - Total 0 Types 0/0/0/0/0/0/0/0/0 Lore% 21 Gallery% 30 Achievement% 26 Wizard Run 0 Options --------- Layout 0 ASCII 0 Keyboard 1 Movement Vi Keybinds 0 Fullscreen 1 Font 18/SmallcapsGlow Map View 76x50 Zoom Use 0% Tactical HUD 1 Map Filters NONE Filters NONE Steam 1 RUN: 1e468424-a8eb-4d13-bf4e-baa72d8f4d97